fUSD/lending_fUSD_20260622
["ID","MTS","AMOUNT","RATE_DAILY","PERIOD"]
[426058804,1782131596000,-500.0,0.00032602,2]
[426058812,1782131596000,-1500.0,0.000327,2]
[426058809,1782131596000,-251.0,0.0003267,2]
[426058811,1782131596000,-803.53,0.00032691,14]
[426058813,1782131596000,-150.0,0.00032738,120]
[426058799,1782131596000,-805.85,0.00032602,2]
[426058816,1782131596000,-1500.0,0.000328,2]
[426058826,1782131596000,-573.66,0.00032819,2]
[426058823,1782131596000,-151.0,0.00032816,2]
[426058822,1782131596000,-573.66,0.00032816,2]
[426058821,1782131596000,-571.27,0.00032816,2]
[426058810,1782131596000,-251.0,0.0003267,2]
[426058825,1782131596000,-644.33,0.00032816,2]
[426058815,1782131596000,-1000.0,0.000328,120]
[426058818,1782131596000,-169.61433339,0.00032805,7]
[426058824,1782131596000,-151.0,0.00032816,2]
[426058819,1782131596000,-573.66,0.00032807,2]
[426058817,1782131596000,-4935.13167911,0.000328,2]
[426058814,1782131596000,-6302.89812123,0.00032747,120]
[426058820,1782131596000,-396.29,0.00032816,2]
[426058899,1782131597000,-850.25,0.00032876,2]
[426058896,1782131597000,-944.23,0.00032876,2]
[426058888,1782131597000,-691.46,0.00032876,2]
[426058886,1782131597000,-1181.38,0.00032876,2]
[426058891,1782131597000,-500.0,0.00032876,2]
[426058885,1782131597000,-593.04,0.00032876,2]
[426058895,1782131597000,-1040.83,0.00032876,2]
[426058890,1782131597000,-1255.65,0.00032876,2]
[426058889,1782131597000,-725.12,0.00032876,2]
[426058892,1782131597000,-703.04,0.00032876,2]
[426058887,1782131597000,-548.72,0.00032876,2]
[426058901,1782131597000,-608.59,0.00032876,2]
[426058902,1782131597000,-523.74,0.00032876,2]
[426058897,1782131597000,-526.29316113,0.00032876,2]
[426058904,1782131597000,-1501.08,0.00032876,2]
[426058905,1782131597000,-936.99,0.00032876,2]
[426058900,1782131597000,-584.59,0.00032876,2]
[426058903,1782131597000,-557.80675446,0.00032876,2]
[426058906,1782131597000,-1046.3,0.00032876,2]
[426058908,1782131597000,-670.91,0.00032876,2]
[426058907,1782131597000,-786.59,0.00032876,2]
[426058909,1782131597000,-540.55,0.00032876,2]
[426058910,1782131597000,-554.01,0.00032876,2]
[426058911,1782131597000,-718.0,0.00032876,2]
[426058884,1782131597000,-501.54,0.00032876,2]
[426058898,1782131597000,-856.58,0.00032876,2]
[426058893,1782131597000,-531.43,0.00032876,2]
[426058865,1782131597000,-661.35,0.00032876,2]
[426058883,1782131597000,-678.94,0.00032876,2]
[426058912,1782131597000,-500.0,0.00032876,2]
[426058859,1782131597000,-755.16,0.00032876,2]
[426058858,1782131597000,-2673.46,0.00032876,2]
[426058861,1782131597000,-500.51,0.00032876,2]
[426058869,1782131597000,-511.5,0.00032876,2]
[426058872,1782131597000,-1404.94,0.00032876,2]
[426058871,1782131597000,-614.75,0.00032876,2]
[426058868,1782131597000,-714.12,0.00032876,2]
[426058862,1782131597000,-557.46,0.00032876,2]
[426058860,1782131597000,-695.0,0.00032876,2]
[426058864,1782131597000,-500.0,0.00032876,2]
[426058863,1782131597000,-1180.24,0.00032876,2]
[426058870,1782131597000,-586.89,0.00032876,2]
[426058866,1782131597000,-739.37,0.00032876,2]
[426058867,1782131597000,-983.84,0.00032876,2]
[426058873,1782131597000,-1137.32,0.00032876,2]
[426058877,1782131597000,-515.21,0.00032876,2]
[426058876,1782131597000,-688.82,0.00032876,2]
[426058875,1782131597000,-500.0,0.00032876,2]
[426058874,1782131597000,-500.0,0.00032876,2]
[426058878,1782131597000,-562.32,0.00032876,2]
[426058881,1782131597000,-721.3,0.00032876,2]
[426058882,1782131597000,-528.44,0.00032876,2]
[426058879,1782131597000,-500.0,0.00032876,2]
[426058880,1782131597000,-807.35,0.00032876,2]
[426058894,1782131597000,-617.49,0.00032876,2]
[426058916,1782131597000,-834.64,0.00032876,2]
[426058925,1782131597000,-636.73,0.00032876,2]
[426058915,1782131597000,-504.09,0.00032876,2]
[426058949,1782131597000,-500.0,0.00032876,2]
[426058950,1782131597000,-500.0,0.00032876,2]
[426058945,1782131597000,-500.0,0.00032876,2]
[426058947,1782131597000,-869.96,0.00032876,2]
[426058944,1782131597000,-4029.46,0.00032876,2]
[426058948,1782131597000,-635.95,0.00032876,2]
[426058952,1782131597000,-758.34,0.00032876,2]
[426058951,1782131597000,-501.26,0.00032876,2]
[426058954,1782131597000,-940.86,0.00032876,2]
[426058957,1782131597000,-784.71,0.00032876,2]
[426058955,1782131597000,-873.39,0.00032876,2]
[426058956,1782131597000,-500.0,0.00032876,2]
[426058953,1782131597000,-275.72739731,0.00032876,2]
[426058961,1782131597000,-1050.73,0.00032876,2]
[426058962,1782131597000,-636.07,0.00032876,2]
[426058960,1782131597000,-3639.77,0.00032876,2]
[426058959,1782131597000,-600.74,0.00032876,2]
[426058958,1782131597000,-1443.16,0.00032876,2]
[426058964,1782131597000,-700.32,0.00032876,2]
[426058963,1782131597000,-510.38,0.00032876,2]
[426058965,1782131597000,-945.27,0.00032876,2]
[426058970,1782131597000,-1014.22,0.00032876,2]
[426058967,1782131597000,-541.49,0.00032876,2]
[426058968,1782131597000,-590.33,0.00032876,2]
[426058966,1782131597000,-526.09,0.00032876,2]
[426058946,1782131597000,-739.67,0.00032876,2]
[426058943,1782131597000,-500.0,0.00032876,2]
[426058913,1782131597000,-666.78,0.00032876,2]
[426058939,1782131597000,-740.41,0.00032876,2]
[426058942,1782131597000,-879.63,0.00032876,2]
[426058914,1782131597000,-790.07,0.00032876,2]
[426058917,1782131597000,-790.49,0.00032876,2]
[426058969,1782131597000,-986.53,0.00032876,2]
[426058922,1782131597000,-500.0,0.00032876,2]
[426058919,1782131597000,-853.2,0.00032876,2]
[426058918,1782131597000,-510.33,0.00032876,2]
[426058920,1782131597000,-564.32,0.00032876,2]
[426058923,1782131597000,-500.0,0.00032876,2]
[426058927,1782131597000,-992.54,0.00032876,2]
[426058928,1782131597000,-617.25,0.00032876,2]
[426058921,1782131597000,-900.89,0.00032876,2]
[426058926,1782131597000,-702.96,0.00032876,2]
[426058930,1782131597000,-500.0,0.00032876,2]
[426058936,1782131597000,-858.12,0.00032876,2]
[426058924,1782131597000,-715.39,0.00032876,2]
[426058937,1782131597000,-521.74,0.00032876,2]
[426058932,1782131597000,-500.0,0.00032876,2]
[426058935,1782131597000,-1069.93,0.00032876,2]
[426058938,1782131597000,-788.02,0.00032876,2]
[426058934,1782131597000,-577.94,0.00032876,2]
[426058933,1782131597000,-1250.12,0.00032876,2]
[426058931,1782131597000,-524.23,0.00032876,2]
[426058941,1782131597000,-3364.63,0.00032876,2]
[426058940,1782131597000,-689.12,0.00032876,2]
[426058929,1782131597000,-947.18,0.00032876,2]
[426059008,1782131598000,-566.57,0.00032876,2]
[426059021,1782131598000,-626.49,0.00032876,2]
[426059009,1782131598000,-861.51,0.00032876,2]
[426059005,1782131598000,-609.0725513,0.00032876,2]
[426059001,1782131598000,-596.6,0.00032876,2]
[426059002,1782131598000,-626.46,0.00032876,2]
[426058999,1782131598000,-383.7380264,0.00032876,2]
[426059007,1782131598000,-733.03,0.00032876,2]
[426059004,1782131598000,-542.05,0.00032876,2]
[426059011,1782131598000,-593.89,0.00032876,2]
[426059003,1782131598000,-512.67,0.00032876,2]
[426059022,1782131598000,-585.33,0.00032876,2]
[426059028,1782131598000,-604.11,0.00032876,2]
[426059015,1782131598000,-2746.21,0.00032876,2]
[426059012,1782131598000,-2103.48,0.00032876,2]
[426059014,1782131598000,-554.28,0.00032876,2]
[426059019,1782131598000,-1706.4,0.00032876,2]
[426059010,1782131598000,-804.78,0.00032876,2]
[426059013,1782131598000,-500.0,0.00032876,2]
[426059017,1782131598000,-375.29838984,0.00032876,2]
[426059018,1782131598000,-698.47,0.00032876,2]
[426059025,1782131598000,-1326.5,0.00032876,2]
[426059023,1782131598000,-830.91,0.00032876,2]
[426059006,1782131598000,-2693.07,0.00032876,2]
[426059016,1782131598000,-785.53,0.00032876,2]
[426059000,1782131598000,-500.0,0.00032876,2]
[426058987,1782131598000,-500.0,0.00032876,2]
[426058995,1782131598000,-806.98,0.00032876,2]
[426058974,1782131598000,-846.46,0.00032876,2]
[426058971,1782131598000,-694.68,0.00032876,2]
[426058973,1782131598000,-696.96,0.00032876,2]
[426058972,1782131598000,-500.0,0.00032876,2]
[426058975,1782131598000,-928.29,0.00032876,2]
[426058977,1782131598000,-571.32,0.00032876,2]
[426058980,1782131598000,-562.61,0.00032876,2]
[426058979,1782131598000,-700.09,0.00032876,2]
[426058981,1782131598000,-739.97,0.00032876,2]
[426058984,1782131598000,-739.97,0.00032876,2]
[426058982,1782131598000,-559.62,0.00032876,2]
[426058983,1782131598000,-500.0,0.00032876,2]
[426058998,1782131598000,-519.81,0.00032876,2]
[426058976,1782131598000,-269.49447903,0.00032876,2]
[426058985,1782131598000,-3267.88,0.00032876,2]
[426059026,1782131598000,-500.0,0.00032876,2]
[426058986,1782131598000,-500.0,0.00032876,2]
[426058989,1782131598000,-816.43,0.00032876,2]
[426058988,1782131598000,-905.07,0.00032876,2]
[426058997,1782131598000,-3183.96,0.00032876,2]
[426058994,1782131598000,-1075.88,0.00032876,2]
[426058991,1782131598000,-827.96,0.00032876,2]
[426058992,1782131598000,-1352.1,0.00032876,2]
[426058993,1782131598000,-1369.37,0.00032876,2]
[426058990,1782131598000,-558.4,0.00032876,2]
[426058996,1782131598000,-500.0,0.00032876,2]
[426058978,1782131598000,-646.8330854,0.00032876,2]
[426059035,1782131598000,-1158.24,0.00032876,2]
[426059020,1782131598000,-1155.68,0.00032876,2]
[426059030,1782131598000,-553.22,0.00032876,2]
[426059058,1782131598000,-2000.0,0.00032876,2]
[426059062,1782131598000,-570.0,0.00032876,2]
[426059072,1782131598000,-657.57,0.00032876,2]
[426059061,1782131598000,-687.7,0.00032876,2]
[426059068,1782131598000,-591.59,0.00032876,2]
[426059067,1782131598000,-500.0,0.00032876,2]
[426059066,1782131598000,-557.86,0.00032876,2]
[426059064,1782131598000,-685.72,0.00032876,2]
[426059063,1782131598000,-713.2,0.00032876,2]
[426059065,1782131598000,-1010.5,0.00032876,2]
[426059071,1782131598000,-483.25958594,0.00032876,2]
[426059070,1782131598000,-7121.05,0.00032876,2]
[426059069,1782131598000,-1413.15,0.00032876,2]
[426059074,1782131598000,-4227.56,0.00032876,2]
[426059076,1782131598000,-1169.7,0.00032876,2]
[426059034,1782131598000,-784.56,0.00032876,2]
[426059078,1782131598000,-6597.51,0.00032876,2]
[426059073,1782131598000,-252.68586956,0.00032876,2]
[426059079,1782131598000,-7004.08,0.00032876,2]
[426059077,1782131598000,-4492.09,0.00032876,2]
[426059080,1782131598000,-500.0,0.00032876,2]
[426059081,1782131598000,-9672.86,0.00032876,2]
[426059082,1782131598000,-658.07,0.00032876,2]
[426059084,1782131598000,-263.45,0.00032876,2]
[426059083,1782131598000,-909.43,0.00032876,2]
[426059055,1782131598000,-1204.89,0.00032876,2]
[426059050,1782131598000,-2940.44,0.00032876,2]
[426059075,1782131598000,-6843.28,0.00032876,2]
[426059057,1782131598000,-370.00612974,0.00032876,2]
[426059060,1782131598000,-3373.56,0.00032876,2]
[426059033,1782131598000,-500.0,0.00032876,2]
[426059024,1782131598000,-699.61,0.00032876,2]
[426059032,1782131598000,-3549.98,0.00032876,2]
[426059029,1782131598000,-1302.85,0.00032876,2]
[426059027,1782131598000,-500.0,0.00032876,2]
[426059031,1782131598000,-636.95,0.00032876,2]
[426059047,1782131598000,-4341.82,0.00032876,2]
[426059048,1782131598000,-6186.73,0.00032876,2]
[426059036,1782131598000,-519.8,0.00032876,2]
[426059039,1782131598000,-1271.92,0.00032876,2]
[426059038,1782131598000,-546.18,0.00032876,2]
[426059040,1782131598000,-1496.54,0.00032876,2]
[426059037,1782131598000,-567.35,0.00032876,2]
[426059043,1782131598000,-1362.17,0.00032876,2]
[426059056,1782131598000,-849.12,0.00032876,2]
[426059044,1782131598000,-1838.48,0.00032876,2]
[426059054,1782131598000,-847.85,0.00032876,2]
[426059059,1782131598000,-8197.77,0.00032876,2]
[426059052,1782131598000,-616.23,0.00032876,2]
[426059051,1782131598000,-11028.8,0.00032876,2]
[426059053,1782131598000,-5138.93,0.00032876,2]
[426059045,1782131598000,-711.86,0.00032876,2]
[426059042,1782131598000,-695.59,0.00032876,2]
[426059046,1782131598000,-504.85,0.00032876,2]
[426059041,1782131598000,-3395.17,0.00032876,2]
[426059049,1782131598000,-4113.41,0.00032876,2]
[426059105,1782131599000,-500.0,0.00032876,120]
[426059114,1782131599000,-844.33,0.00032876,2]
[426059106,1782131599000,-500.0,0.00032876,120]
[426059108,1782131599000,-500.0,0.00032876,120]
[426059113,1782131599000,-775.18,0.00032876,2]
[426059109,1782131599000,-500.0,0.00032876,120]
[426059112,1782131599000,-5625.93,0.00032876,2]
[426059117,1782131599000,-524.63297083,0.00032876,2]
[426059110,1782131599000,-919.77,0.00032876,2]
[426059115,1782131599000,-251.93582017,0.00032876,2]
[426059118,1782131599000,-912.76,0.00032876,2]
[426059107,1782131599000,-500.0,0.00032876,120]
[426059120,1782131599000,-500.0,0.00032876,2]
[426059116,1782131599000,-1087.5,0.00032876,2]
[426059119,1782131599000,-500.0,0.00032876,2]
[426059111,1782131599000,-500.0,0.00032876,120]
[426059103,1782131599000,-500.0,0.00032876,120]
[426059097,1782131599000,-8686.62,0.00032876,2]
[426059102,1782131599000,-500.0,0.00032876,120]
[426059125,1782131599000,-500.0,0.00032876,2]
[426059086,1782131599000,-1002.58,0.00032876,2]
[426059085,1782131599000,-500.0,0.00032876,2]
[426059087,1782131599000,-8639.58,0.00032876,2]
[426059089,1782131599000,-500.0,0.00032876,120]
[426059090,1782131599000,-500.0,0.00032876,120]
[426059091,1782131599000,-500.0,0.00032876,120]
[426059104,1782131599000,-500.0,0.00032876,120]
[426059092,1782131599000,-500.0,0.00032876,120]
[426059094,1782131599000,-500.0,0.00032876,120]
[426059096,1782131599000,-500.0,0.00032876,120]
[426059095,1782131599000,-500.0,0.00032876,120]
[426059098,1782131599000,-500.0,0.00032876,120]
[426059101,1782131599000,-500.0,0.00032876,120]
[426059100,1782131599000,-500.0,0.00032876,120]
[426059099,1782131599000,-500.0,0.00032876,120]
[426059093,1782131599000,-500.0,0.00032876,120]
[426059088,1782131599000,-4376.06,0.00032876,2]
[426059124,1782131599000,-500.0,0.00032876,2]
[426059121,1782131599000,-500.0,0.00032876,2]
[426059144,1782131599000,-2905.9,0.00032876,2]
[426059146,1782131599000,-4175.97,0.00032876,2]
[426059155,1782131599000,-948.73847357,0.00032876,2]
[426059148,1782131599000,-180.77500695,0.00032876,2]
[426059151,1782131599000,-895.47,0.00032876,2]
[426059152,1782131599000,-948.73847357,0.00032876,2]
[426059147,1782131599000,-500.0,0.00032876,2]
[426059140,1782131599000,-500.0,0.00032876,2]
[426059154,1782131599000,-948.73847357,0.00032876,2]
[426059153,1782131599000,-948.73847357,0.00032876,2]
[426059149,1782131599000,-500.0,0.00032876,2]
[426059160,1782131599000,-781.2,0.00032876,2]
[426059158,1782131599000,-948.73847357,0.00032876,2]
[426059157,1782131599000,-948.73847357,0.00032876,2]
[426059156,1782131599000,-948.73847357,0.00032876,2]
[426059122,1782131599000,-500.0,0.00032876,2]
[426059150,1782131599000,-513.61,0.00032876,2]
[426059141,1782131599000,-153.8940424,0.00032876,2]
[426059159,1782131599000,-948.73847357,0.00032876,2]
[426059138,1782131599000,-500.0,0.00032876,2]
[426059145,1782131599000,-2044.4,0.00032876,2]
[426059123,1782131599000,-500.0,0.00032876,2]
[426059134,1782131599000,-500.0,0.00032876,2]
[426059132,1782131599000,-500.0,0.00032876,2]
[426059130,1782131599000,-500.0,0.00032876,2]
[426059135,1782131599000,-500.0,0.00032876,2]
[426059128,1782131599000,-500.0,0.00032876,2]
[426059127,1782131599000,-500.0,0.00032876,2]
[426059129,1782131599000,-500.0,0.00032876,2]
[426059133,1782131599000,-500.0,0.00032876,2]
[426059136,1782131599000,-500.0,0.00032876,2]
[426059131,1782131599000,-500.0,0.00032876,2]
[426059137,1782131599000,-500.0,0.00032876,2]
[426059139,1782131599000,-500.0,0.00032876,2]
[426059126,1782131599000,-500.0,0.00032876,2]
[426059143,1782131599000,-729.92,0.00032876,2]
[426059142,1782131599000,-500.0,0.00032876,2]
[426059182,1782131600000,-151.0,0.00032877,7]
[426059181,1782131600000,-151.0,0.00032877,7]
[426059180,1782131600000,-151.0,0.00032877,7]
[426059178,1782131600000,-151.0,0.00032877,7]
[426059184,1782131600000,-151.0,0.00032877,7]
[426059187,1782131600000,-151.0,0.00032877,7]
[426059188,1782131600000,-151.0,0.00032877,7]
[426059185,1782131600000,-151.0,0.00032877,7]
[426059189,1782131600000,-151.0,0.00032877,7]
[426059190,1782131600000,-151.0,0.00032877,7]
[426059191,1782131600000,-221.220999,0.00032877,7]
[426059196,1782131600000,-1000.0,0.00032877,10]
[426059179,1782131600000,-151.0,0.00032877,7]
[426059194,1782131600000,-151.0,0.00032877,7]
[426059186,1782131600000,-151.0,0.00032877,7]
[426059183,1782131600000,-151.0,0.00032877,7]
[426059172,1782131600000,-150.0,0.00032876,2]
[426059176,1782131600000,-151.0,0.00032877,7]
[426059197,1782131600000,-1000.0,0.00032877,10]
[426059161,1782131600000,-554.0,0.00032876,2]
[426059164,1782131600000,-777.53,0.00032876,2]
[426059165,1782131600000,-537.51,0.00032876,2]
[426059163,1782131600000,-350.0,0.00032876,2]
[426059162,1782131600000,-1281.85,0.00032876,2]
[426059177,1782131600000,-151.0,0.00032877,7]
[426059171,1782131600000,-500.0,0.00032876,2]
[426059170,1782131600000,-984.2,0.00032876,2]
[426059167,1782131600000,-879.74,0.00032876,2]
[426059169,1782131600000,-948.85,0.00032876,2]
[426059175,1782131600000,-151.0,0.00032877,7]
[426059174,1782131600000,-151.0,0.00032877,7]
[426059168,1782131600000,-1013.21,0.00032876,2]
[426059173,1782131600000,-151.0,0.00032877,7]
[426059198,1782131600000,-151.0,0.00032877,7]
[426059166,1782131600000,-805.85,0.00032876,2]
[426059199,1782131600000,-151.0,0.00032877,7]
[426059216,1782131600000,-500.0,0.00032877,2]
[426059217,1782131600000,-500.0,0.00032877,2]
[426059219,1782131600000,-500.0,0.00032877,2]
[426059221,1782131600000,-2000.0,0.00032877,50]
[426059220,1782131600000,-500.0,0.00032877,2]
[426059222,1782131600000,-171.6,0.00032877,50]
[426059225,1782131600000,-1430.0,0.00032877,2]
[426059224,1782131600000,-1430.0,0.00032877,2]
[426059223,1782131600000,-160.718196,0.00032877,120]
[426059227,1782131600000,-1430.0,0.00032877,2]
[426059229,1782131600000,-1430.0,0.00032877,2]
[426059230,1782131600000,-1430.0,0.00032877,2]
[426059228,1782131600000,-1430.0,0.00032877,2]
[426059231,1782131600000,-1430.0,0.00032877,2]
[426059192,1782131600000,-1000.0,0.00032877,10]
[426059215,1782131600000,-150.0,0.00032877,40]
[426059218,1782131600000,-500.0,0.00032877,2]
[426059226,1782131600000,-1430.0,0.00032877,2]
[426059214,1782131600000,-500.37659348,0.00032877,2]
[426059213,1782131600000,-167.95070075,0.00032877,2]
[426059193,1782131600000,-151.0,0.00032877,7]
[426059195,1782131600000,-871.9,0.00032877,2]
[426059201,1782131600000,-151.0,0.00032877,7]
[426059202,1782131600000,-151.0,0.00032877,7]
[426059204,1782131600000,-1000.0,0.00032877,10]
[426059203,1782131600000,-176.223733,0.00032877,7]
[426059200,1782131600000,-151.0,0.00032877,7]
[426059206,1782131600000,-1000.0,0.00032877,10]
[426059208,1782131600000,-742.31,0.00032877,120]
[426059207,1782131600000,-150.0,0.00032877,2]
[426059209,1782131600000,-385.19,0.00032877,120]
[426059210,1782131600000,-222.97824244,0.00032877,2]
[426059212,1782131600000,-668.93472732,0.00032877,2]
[426059205,1782131600000,-1000.0,0.00032877,10]
[426059211,1782131600000,-445.95648488,0.00032877,2]
[426059247,1782131601000,-1449.0,0.00032877,2]
[426059248,1782131601000,-263.45,0.00032885,120]
[426059250,1782131601000,-1500.0,0.000329,2]
[426059249,1782131601000,-180197.92149587,0.0003289,2]
[426059253,1782131601000,-672.0,0.00032909,30]
[426059252,1782131601000,-230.81,0.000329,60]
[426059254,1782131601000,-436.0,0.00032909,30]
[426059244,1782131601000,-1430.0,0.00032877,2]
[426059256,1782131601000,-180.0,0.00032937,30]
[426059251,1782131601000,-435.8,0.000329,120]
[426059245,1782131601000,-1430.0,0.00032877,2]
[426059241,1782131601000,-1430.0,0.00032877,2]
[426059243,1782131601000,-1430.0,0.00032877,2]
[426059242,1782131601000,-1430.0,0.00032877,2]
[426059239,1782131601000,-1430.0,0.00032877,2]
[426059240,1782131601000,-1430.0,0.00032877,2]
[426059237,1782131601000,-1430.0,0.00032877,2]
[426059238,1782131601000,-1430.0,0.00032877,2]
[426059235,1782131601000,-1430.0,0.00032877,2]
[426059236,1782131601000,-1430.0,0.00032877,2]
[426059234,1782131601000,-1430.0,0.00032877,2]
[426059233,1782131601000,-1430.0,0.00032877,2]
[426059232,1782131601000,-1430.0,0.00032877,2]
[426059258,1782131601000,-159.0,0.00032937,30]
[426059246,1782131601000,-1430.0,0.00032877,2]
[426059257,1782131601000,-181.0,0.00032937,30]
[426059255,1782131601000,-250.0,0.00032922,27]
[426059259,1782131601000,-826.0,0.00032953,30]
[426059260,1782131601000,-1115.0,0.00032953,30]
[426059285,1782131601000,-1017.0,0.00033,120]
[426059284,1782131601000,-1093.92693967,0.00033,120]
[426059283,1782131601000,-800.0,0.00033,2]
[426059282,1782131601000,-50000.0,0.00033,3]
[426059279,1782131601000,-204.69773429,0.00032999,120]
[426059280,1782131601000,-217.40633415,0.00032999,120]
[426059278,1782131601000,-434.8126683,0.00032999,120]
[426059277,1782131601000,-202.16129499,0.00032999,120]
[426059276,1782131601000,-183.89303125,0.00032999,120]
[426059275,1782131601000,-330.18316794,0.00032999,120]
[426059272,1782131601000,-350.0,0.0003299,27]
[426059281,1782131601000,-217.40633414,0.00032999,120]
[426059273,1782131601000,-244.55321527,0.00032999,120]
[426059274,1782131601000,-303.2419425,0.00032999,120]
[426059264,1782131601000,-150.84201959,0.00032955,2]
[426059263,1782131601000,-1000.0,0.00032955,2]
[426059261,1782131601000,-156.0,0.00032953,30]
[426059266,1782131601000,-150.0,0.00032955,2]
[426059262,1782131601000,-166.0,0.00032953,30]
[426059267,1782131601000,-150.0,0.00032955,2]
[426059268,1782131601000,-502.82995545,0.00032955,2]
[426059269,1782131601000,-500.0,0.00032955,2]
[426059270,1782131601000,-500.0,0.00032955,2]
[426059271,1782131601000,-500.0,0.00032955,2]
[426059265,1782131601000,-150.0,0.00032955,2]
[426059309,1782131602000,-10000.0,0.00033,30]
[426059314,1782131602000,-173.14640739,0.00033,120]
[426059311,1782131602000,-168.8378524,0.00033,120]
[426059315,1782131602000,-311.62966018,0.00033,120]
[426059312,1782131602000,-365.8898406,0.00033,120]
[426059310,1782131602000,-169.87728653,0.00033,120]
[426059313,1782131602000,-204.42373506,0.00033,120]
[426059316,1782131602000,-956.39857048,0.00033,120]
[426059318,1782131602000,-20000.0,0.00033,120]
[426059326,1782131602000,-1552.83,0.00033026,5]
[426059320,1782131602000,-90000.38398289,0.00033,120]
[426059319,1782131602000,-20200.0,0.00033,7]
[426059321,1782131602000,-222.07,0.00033,120]
[426059324,1782131602000,-156.0,0.00033018,30]
[426059323,1782131602000,-489.0,0.00033018,30]
[426059327,1782131602000,-501.0,0.00033077,8]
[426059322,1782131602000,-388.19,0.00033013,7]
[426059308,1782131602000,-1000.0,0.00033,2]
[426059317,1782131602000,-234.75948901,0.00033,120]
[426059305,1782131602000,-120192.34464754,0.00033,2]
[426059293,1782131602000,-800.0,0.00033,2]
[426059303,1782131602000,-579.0,0.00033,120]
[426059325,1782131602000,-202.0,0.00033018,30]
[426059287,1782131602000,-800.0,0.00033,2]
[426059286,1782131602000,-10000.0,0.00033,120]
[426059288,1782131602000,-800.0,0.00033,2]
[426059290,1782131602000,-500.0,0.00033,120]
[426059289,1782131602000,-800.0,0.00033,2]
[426059292,1782131602000,-800.0,0.00033,2]
[426059291,1782131602000,-800.0,0.00033,2]
[426059294,1782131602000,-800.0,0.00033,2]
[426059295,1782131602000,-100000.0,0.00033,10]
[426059296,1782131602000,-52440.87352962,0.00033,2]
[426059298,1782131602000,-3699.22867855,0.00033,2]
[426059297,1782131602000,-1368.13389471,0.00033,7]
[426059299,1782131602000,-508.82341272,0.00033,30]
[426059301,1782131602000,-251.0,0.00033,2]
[426059306,1782131602000,-1000.0,0.00033,2]
[426059300,1782131602000,-14649.50517413,0.00033,30]
[426059302,1782131602000,-269.79978595,0.00033,30]
[426059307,1782131602000,-1000.0,0.00033,2]
[426059304,1782131602000,-1000.0,0.00033,120]
[426059328,1782131602000,-150.0,0.0003308,2]
[426059368,1782131602000,-1724.88,0.0003315,2]
[426059331,1782131602000,-150.0,0.0003308,2]
[426059357,1782131602000,-270.54865888,0.00033123,120]
[426059358,1782131602000,-151.34120793,0.00033123,120]
[426059355,1782131602000,-1653.7,0.0003312,30]
[426059356,1782131602000,-251.22367778,0.00033123,120]
[426059352,1782131602000,-1543.946,0.000331,30]
[426059359,1782131602000,-189.17650991,0.00033123,120]
[426059363,1782131602000,-680.9,0.0003315,2]